bitfinex/quotes_SOLUSD_20220212
["timestamp","ask_amount","ask_price","bid_price","bid_amount"]
[1644652085850,38.43838448,93.798,93.663,5.333]
[1644652085851,0.03813046,93.77,93.67,16.0035]
[1644652086051,0.03813046,93.78,93.67,31.3835]
[1644652086253,0.03813046,93.79,93.67,31.3835]
[1644652086451,0.03813046,93.78,93.67,31.3835]
[1644652086652,0.03813046,93.8,93.67,31.3835]
[1644652086853,0.03813046,93.78,93.67,31.3835]
[1644652087053,0.03813046,93.79,93.675,1.49785772]
[1644652087256,0.03813046,93.78,93.7,15.9936]
[1644652087455,0.03813046,93.83,93.701,41.7256098]
[1644652087654,0.03813046,93.83,93.71,12.83]
[1644652087854,0.03813046,93.83,93.711,5.332]
[1644652088856,0.03813046,93.83,93.721,26.9295184]
[1644652089056,0.03813046,93.83,93.73,12.83]
[1644652089259,0.03813046,93.83,93.731,5.331]
[1644652089458,0.03813046,93.83,93.731,6.351]
[1644652090857,0.03813046,93.83,93.75,15.9898]
[1644652091056,0.03813046,93.86,93.75,15.9898]
[1644652091859,0.03813046,93.86,93.77,15.9893]
[1644652092059,53.05750285,93.869,93.771,26.9295184]
[1644652092660,2.32554259,93.868,93.771,26.9295184]
[1644652092862,5.329,93.867,93.771,26.9295184]
[1644652093059,53.05650285,93.869,93.771,26.9295184]
[1644652093258,21.89536166,93.868,93.771,26.9295184]
[1644652093459,19.56981907,93.868,93.771,26.9295184]
[1644652093859,47.72750285,93.869,93.771,26.9295184]
[1644652094060,47.72750285,93.869,93.772,5.329]
[1644652094760,47.72750285,93.869,93.78,15.9882]
[1644652094966,47.72750285,93.869,93.781,5.329]
[1644652095264,47.72750285,93.869,93.773,5.329]
[1644652095562,47.72750285,93.869,93.772,5.329]
[1644652096164,0.03813046,93.87,93.79,15.9857]
[1644652096364,0.03813046,93.89,93.79,15.9857]
[1644652096565,0.03813046,93.88,93.79,15.9857]
[1644652096764,0.03813046,93.89,93.79,15.9857]
[1644652096964,0.03813046,93.9,93.791,5.328]
[1644652097165,0.03813046,93.89,93.792,41.58881014]
[1644652097467,0.03813046,93.91,93.82,15.9812]
[1644652097665,0.03813046,93.89,93.821,32.39131806]
[1644652097866,37.47807923,93.916,93.821,32.39131806]
[1644652098066,0.03813046,93.91,93.821,32.39131806]
[1644652098265,37.47807923,93.916,93.821,32.39131806]
[1644652098867,0.03813046,93.92,93.821,32.39131806]
[1644652099869,0.03813046,93.92,93.841,41.58881014]
[1644652100072,34.5342418,93.926,93.841,41.58881014]
[1644652100270,5.325,93.925,93.841,41.58881014]
[1644652102096,34.5342418,93.926,93.841,41.58881014]
[1644652105799,34.5342418,93.926,93.85,15.9755]
[1644652105999,25.0,93.925,93.792,9.83]
[1644652106199,0.03813046,93.92,93.81,12.83]
[1644652106399,0.03813046,93.91,93.82,12.83]
[1644652106602,0.03813046,93.93,93.82,66.0839]
[1644652107102,0.03813046,93.93,93.821,25.82360807]
[1644652107902,0.03813046,93.93,93.83,15.9764]
[1644652109302,0.03813046,93.93,93.831,5.325]
[1644652109501,0.03813046,93.93,93.84,15.9765]
[1644652109703,0.03813046,93.93,93.841,1.24270999]
[1644652110104,0.03813046,93.93,93.84,15.9765]
[1644652110105,2.33086541,93.929,93.842,5.325]
[1644652110706,0.03813046,93.93,93.842,5.325]
[1644652110905,0.03813046,93.93,93.84,15.9765]
[1644652111104,0.03813046,93.93,93.841,20.67972284]
[1644652111706,0.03813046,93.93,93.84,15.9765]
[1644652112106,0.03813046,93.93,93.82,53.2539]
[1644652112107,5.325,93.929,93.82,15.9806]
[1644652112306,0.03813046,93.92,93.794,5.325]
[1644652112506,12.83,93.91,93.772,5.325]
[1644652112712,0.03813046,93.9,93.788,2.38366791]
[1644652112906,5.327,93.899,93.788,2.38366791]
[1644652113110,0.03813046,93.89,93.789,5.328]
[1644652113408,0.03813046,93.89,93.752,7.71266791]
[1644652113409,5.328,93.889,93.752,7.71266791]
[1644652113607,48.8096,93.888,93.752,2.38366791]
[1644652113806,0.03813046,93.88,93.741,7.71266791]
[1644652114006,12.83,93.87,93.743,2.38366791]
[1644652114206,0.03813046,93.86,93.744,5.329]
[1644652114606,0.03813046,93.86,93.745,2.38366791]
[1644652114807,0.03813046,93.86,93.76,15.9914]
[1644652115107,0.03813046,93.86,93.761,2.8852301]
[1644652115308,38.21932725,93.869,93.761,8.2142301]
[1644652115506,38.21932725,93.869,93.762,2.38366791]
[1644652115507,0.03813046,93.86,93.762,2.38366791]
[1644652115708,0.03813046,93.86,93.741,5.329]
[1644652115709,5.329,93.859,93.743,2.38366791]
[1644652115907,0.03813046,93.85,93.743,2.38366791]
[1644652116106,5.33,93.849,93.74,15.9943]
[1644652116506,47.06891023,93.848,93.741,27.30047835]
[1644652116907,0.03813046,93.85,93.742,2.38366791]
[1644652117109,0.03813046,93.86,93.75,15.9922]
[1644652117308,0.03813046,93.86,93.76,12.83]
[1644652117712,0.03813046,93.86,93.761,2.38366791]
[1644652117908,0.03813046,93.86,93.761,4.53317553]
[1644652118311,0.03813046,93.86,93.79,15.985]
[1644652118509,0.03813046,93.88,93.79,28.815]
[1644652118809,0.03813046,93.89,93.791,7.71166791]
[1644652119012,0.03813046,93.9,93.791,7.71166791]
[1644652119211,35.31680895,93.886,93.792,27.30047835]
[1644652119912,35.31680895,93.886,93.793,2.38366791]
[1644652120112,35.31680895,93.886,93.794,5.328]
[1644652120514,35.31680895,93.886,93.795,2.38366791]
[1644652120713,35.31680895,93.886,93.8,12.83]
[1644652121113,35.31680895,93.886,93.801,7.71166791]
[1644652121614,35.31680895,93.886,93.811,2.14950762]
[1644652121817,35.31680895,93.886,93.811,7.47650762]
[1644652122216,35.31680895,93.886,93.811,5.327]
[1644652122917,35.31680895,93.886,93.81,15.9823]
[1644652123116,35.31680895,93.886,93.811,23.70141685]
[1644652123519,35.31680895,93.886,93.82,15.9824]
[1644652124515,5.327,93.899,93.82,15.9824]
[1644652124718,0.03813046,93.9,93.821,2.38366791]
[1644652124915,23.2009,93.904,93.84,15.9781]
[1644652125517,38.18411842,93.903,93.84,15.9781]
[1644652126714,23.2009,93.904,93.84,15.9781]
[1644652126915,0.03813046,93.92,93.84,15.9781]
[1644652127116,1.44737281,93.921,93.84,15.9781]
[1644652127316,1.44737281,93.923,93.84,15.9781]
[1644652127716,47.02982582,93.922,93.84,15.9781]
[1644652128316,47.02982582,93.922,93.85,15.9773]
[1644652129922,48.47719863,93.922,93.85,15.9773]
[1644652130118,1.44737281,93.921,93.85,15.9773]
[1644652130317,5.325,93.92,93.85,15.9773]
[1644652130518,1.44737281,93.921,93.85,15.9773]
[1644652130718,48.47719863,93.922,93.85,15.9773]
[1644652130920,47.02982582,93.922,93.85,15.9773]
[1644652136025,47.02982582,93.922,93.851,5.325]
[1644652136224,47.02982582,93.922,93.85,15.9773]
[1644652137025,47.02982582,93.922,93.84,12.83]
[1644652137026,47.02982582,93.922,93.86,15.9753]
[1644652137425,24.157,93.926,93.86,15.9753]
[1644652137825,24.157,93.926,93.861,5.325]
[1644652140130,24.157,93.926,93.86,28.8053]
[1644652140928,24.157,93.926,93.86,15.9753]
[1644652142333,5.325,93.925,93.841,2.38366791]
[1644652142537,7.65599464,93.925,93.81,12.83]
[1644652142736,0.03813046,93.92,93.793,15.9315]
[1644652142935,0.03813046,93.91,93.794,23.48825891]
[1644652143538,0.03813046,93.91,93.795,5.327]
[1644652143736,39.38851493,93.908,93.82,15.9822]
[1644652144040,5.325,93.907,93.801,5.325]
[1644652144235,0.03813046,93.9,93.8,53.2738]
[1644652144438,0.03813046,93.9,93.801,5.327]
[1644652144941,5.327,93.899,93.8,53.2738]
[1644652145140,5.327,93.899,93.8,77.45689947]
[1644652145541,5.327,93.899,93.8,24.18309947]
[1644652146743,38.07400043,93.89,93.8,40.16879947]
[1644652147141,39.52137324,93.89,93.8,40.16879947]
[1644652147742,38.07400043,93.89,93.8,40.16879947]
[1644652147944,38.07400043,93.89,93.8,15.9857]
[1644652148143,5.327,93.889,93.78,15.9891]
[1644652148342,1.44737281,93.881,93.778,5.327]
[1644652148544,12.83,93.87,93.778,5.327]
[1644652148743,12.83,93.86,93.778,5.327]
[1644652148944,43.15853808,93.851,93.778,5.327]
[1644652149146,52.74853808,93.851,93.779,1.45935915]
[1644652149343,52.74853808,93.851,93.778,5.327]
[1644652149545,43.15853808,93.851,93.779,5.329]
[1644652150345,43.15853808,93.851,93.78,19.18952899]
[1644652150747,43.15853808,93.851,93.781,5.329]
[1644652153369,43.15853808,93.851,93.79,15.9874]
[1644652154569,43.15853808,93.851,93.791,5.329]
[1644652155168,24.5615,93.869,93.791,5.329]
[1644652155569,24.5615,93.869,93.8,15.9864]
[1644652155969,24.5615,93.869,93.801,5.328]
[1644652156370,34.33128805,93.872,93.802,7.87678907]
[1644652156570,34.33128805,93.872,93.803,5.328]
[1644652156770,0.03813046,93.89,93.81,28.8143]
[1644652156973,113.0,94.003,93.81,28.8143]
[1644652156974,0.03813046,93.9,93.81,30.30458176]
[1644652157171,0.03813046,93.93,93.823,1.49028176]
[1644652157369,0.03813046,93.96,93.831,1.49028176]
[1644652157572,0.03813046,93.92,93.824,46.74063886]
[1644652157769,34.27152803,93.944,93.825,19.18952899]
[1644652157969,0.03813046,93.92,93.832,19.3854347]
[1644652158170,0.03813046,93.93,93.832,19.3854347]
[1644652158371,0.03813046,93.93,93.84,12.83]
[1644652158575,0.03813046,93.93,93.841,7.87678907]
[1644652158772,0.03813046,93.93,93.86,15.9735]
[1644652158971,34.27152803,93.944,93.861,19.18952899]
[1644652159173,1.44737281,93.954,93.86,15.9735]
[1644652159376,5.324,93.953,93.862,2.38366791]
[1644652159583,0.03813046,93.96,93.862,2.38366791]
[1644652159778,0.03813046,93.97,93.863,24.7094347]
[1644652159976,0.03813046,93.97,93.88,15.971]
[1644652160178,40.97768358,93.98,93.881,31.8746211]
[1644652160379,40.97768358,93.98,93.881,53.64372371]
[1644652160579,40.97768358,93.98,93.881,51.2600558]
[1644652160780,40.97768358,93.98,93.882,21.76910261]
[1644652160979,40.97768358,93.98,93.91,15.9669]
[1644652161180,40.97768358,93.98,93.912,0.51469696]
[1644652161181,40.93955312,93.98,93.912,0.51469696]
[1644652161379,22.8625,93.985,93.912,0.51469696]
[1644652161584,22.8625,93.985,93.913,5.322]
[1644652162383,41.36274284,93.984,93.913,5.322]
[1644652162784,41.36274284,93.984,93.93,15.9653]
[1644652163784,47.7426,94.001,93.93,15.9653]
[1644652164185,47.7426,94.001,93.931,2.38366791]
[1644652164387,47.7426,94.001,93.95,15.9619]
[1644652164689,113.0,94.003,93.95,15.9619]
[1644652168491,45.31364066,94.005,93.95,15.9619]
[1644652170090,0.03813046,94.03,93.95,15.9619]
[1644652170289,48.338,94.037,93.95,15.9619]
[1644652171290,40.63287719,94.036,93.95,15.9619]
[1644652173993,40.63287719,94.036,93.951,5.319]
[1644652175495,2.33099464,94.035,93.951,5.319]
[1644652175694,5.319,94.035,93.93,15.9635]
[1644652175996,15.40813046,94.03,93.9,15.37]
[1644652176197,0.03813046,94.02,93.901,19.03927148]
[1644652176395,35.08141337,93.996,93.91,15.9668]
[1644652176595,5.321,93.995,93.91,15.9668]
[1644652177801,35.08141337,93.996,93.91,15.9668]
[1644652178000,5.321,93.995,93.91,15.9668]
[1644652178299,35.08141337,93.996,93.91,15.9668]
[1644652179800,35.08141337,93.996,93.911,2.38366791]
[1644652180000,35.08141337,93.996,93.93,15.963]
[1644652180198,35.08141337,93.996,93.931,2.55798967]
[1644652180803,113.0,93.997,93.931,2.55798967]
[1644652181002,0.03813046,94.02,93.932,5.321]
[1644652181202,0.03813046,94.03,93.94,15.9619]
[1644652181403,1.44737281,94.035,93.94,15.9619]
[1644652181602,15.40813046,94.04,93.94,15.9619]
[1644652181603,5.319,94.029,93.94,15.9619]
[1644652181801,0.03813046,94.03,93.94,15.9619]
[1644652182003,41.11329219,94.035,93.94,15.9619]
[1644652182202,5.319,94.034,93.94,15.9619]
[1644652182404,1.44737281,94.028,93.94,15.9619]
[1644652182606,1.44737281,94.028,93.94,31.3319]
[1644652182804,0.03813046,94.03,93.94,31.3319]
[1644652183004,5.319,94.029,93.941,2.38366791]
[1644652183206,6.76637281,94.033,93.96,15.9586]
[1644652183504,41.11329219,94.035,93.96,37.73945448]
[1644652183705,41.11329219,94.035,93.96,40.12312239]
[1644652183906,41.11329219,94.035,93.961,5.319]
[1644652184107,0.03813046,94.04,93.97,15.37]
[1644652184306,1.44737281,94.05,93.99,15.9519]
[1644652184509,0.03813046,94.07,93.99,31.3219]
[1644652184709,1.44737281,94.075,93.99,31.3219]
[1644652185113,48.66147169,94.074,93.991,5.28546358]
[1644652185310,48.66147169,94.074,93.99,31.3219]
[1644652185311,1.44737281,94.048,93.99,31.3219]
[1644652185512,1.44737281,94.048,93.99,15.9519]
[1644652185711,1.44737281,94.045,93.99,15.9519]
[1644652186113,1.44737281,94.05,93.99,15.9519]
[1644652186313,46.68097474,94.049,93.99,15.9519]
[1644652186714,48.12834755,94.049,93.99,15.9519]
[1644652186915,1.44737281,94.049,93.99,15.9519]
[1644652187114,1.44737281,94.052,93.99,15.9519]
[1644652187313,1.44737281,94.053,93.99,15.9519]
[1644652187616,1.44737281,94.056,93.99,15.9519]
[1644652188015,40.55970124,94.055,93.99,15.9519]
[1644652188215,1.44737281,94.042,93.99,15.9519]
[1644652188418,1.44737281,94.042,93.98,19.05204719]
[1644652188616,1.44737281,94.049,93.98,19.05204719]
[1644652188816,1.44737281,94.053,93.981,2.38366791]
[1644652189014,1.44737281,94.049,93.981,5.317]
[1644652189218,1.44737281,94.046,93.98,19.05204719]
[1644652189415,1.44737281,94.05,93.98,19.05204719]
[1644652189815,40.55970124,94.055,93.98,19.05204719]
[1644652189816,1.44737281,94.051,93.98,19.05204719]
[1644652190015,1.44737281,94.05,93.981,5.317]
[1644652190218,1.44737281,94.05,93.98,19.05204719]
[1644652190417,1.44737281,94.053,93.98,19.05204719]
[1644652190818,1.44737281,94.046,93.97,31.3257]
[1644652191017,1.44737281,94.045,93.971,5.317]
[1644652191219,1.44737281,94.048,93.971,5.317]
[1644652191618,1.44737281,94.053,93.972,2.38366791]
[1644652191816,42.00707405,94.055,93.973,26.3355742]
[1644652192230,42.00707405,94.055,93.974,2.38366791]
[1644652192431,42.00707405,94.055,93.975,5.317]
[1644652192737,42.00707405,94.055,93.98,15.9544]
[1644652193333,42.00707405,94.055,93.98,31.3244]
[1644652194333,40.55970124,94.055,93.981,2.38366791]
[1644652194534,40.55970124,94.055,93.99,15.9522]
[1644652194736,1.44737281,94.058,93.991,6.04774386]
[1644652195735,47.05731312,94.058,93.991,6.04774386]
[1644652195936,1.44737281,94.058,93.991,6.04774386]
[1644652196137,1.44737281,94.058,94.0,15.9511]
[1644652196436,1.44737281,94.061,94.0,15.9511]
[1644652196837,1.44737281,94.06,94.0,15.9511]
[1644652197037,35.66854724,94.06,94.0,15.9511]
[1644652197241,47.17854724,94.06,94.0,15.9511]
[1644652197441,45.73117443,94.06,94.0,15.9511]
[1644652197845,45.73117443,94.06,93.98,15.9548]
[1644652198139,1.44737281,94.048,93.954,5.317]
[1644652198339,5.319,94.047,93.923,5.317]
[1644652198542,1.44737281,94.044,93.923,5.317]
[1644652198740,0.03813046,94.04,93.96,15.9578]
[1644652199038,0.03813046,94.03,93.96,15.9578]
[1644652199237,9.01,94.04,93.96,15.9578]
[1644652199738,5.319,94.039,93.96,15.9578]
[1644652199940,6.76637281,94.039,93.96,15.9578]
[1644652200142,5.319,94.039,93.96,15.9578]
[1644652200342,6.76637281,94.039,93.96,15.9578]
[1644652200541,1.44737281,94.028,93.931,5.319]
[1644652200740,5.32,94.027,93.905,5.319]
[1644652200942,1.44737281,94.017,93.886,5.32]
[1644652201242,1.44737281,94.0,93.881,22.44986775]
[1644652201441,0.03813046,93.99,93.881,27.77186775]
[1644652201641,0.03813046,93.99,93.887,2.38366791]
[1644652201842,0.03813046,93.99,93.901,4.61645031]
[1644652202042,5.322,93.998,93.901,4.61645031]
[1644652202444,6.76937281,93.998,93.901,4.61645031]
[1644652203343,5.322,93.998,93.901,4.61645031]
[1644652204543,47.5307,93.999,93.902,5.322]
[1644652205142,47.5307,93.999,93.91,15.9665]
[1644652205342,47.5307,93.999,93.911,5.321]
[1644652205543,47.5307,93.999,93.911,2.38366791]
[1644652205745,47.5307,93.999,93.904,5.321]
[1644652205746,47.5307,93.999,93.912,2.38366791]
[1644652206143,47.5307,93.999,93.913,5.321]
[1644652206344,47.5307,93.999,93.912,2.38366791]
[1644652206543,47.5307,93.999,93.914,2.38366791]
[1644652206743,47.5307,93.999,93.92,15.9648]
[1644652207144,47.5307,93.999,93.921,7.70466791]
[1644652207446,47.5307,93.999,93.922,2.38366791]
[1644652209148,47.5307,93.999,93.93,15.9631]
[1644652209350,48.10945094,94.002,93.93,31.3331]
[1644652209649,0.03903941,94.03,93.931,2.38366791]
[1644652209848,0.03903941,94.02,93.931,2.38366791]
[1644652210049,0.03903941,94.03,93.932,19.3854347]
[1644652210249,2.89474562,94.06,93.96,15.9576]
[1644652210250,1.44737281,94.032,93.96,15.9576]
[1644652210450,45.10384557,94.033,93.961,5.319]
[1644652210651,0.03903941,94.03,93.961,2.38366791]
[1644652210853,45.10384557,94.033,93.962,5.319]
[1644652211051,45.10384557,94.033,93.962,7.70266791]
[1644652211250,45.10384557,94.033,93.963,2.38366791]
[1644652211652,45.10384557,94.033,93.964,22.64054659]
[1644652211853,45.10384557,94.033,93.97,15.9553]
[1644652212253,45.10384557,94.033,93.971,7.70266791]
[1644652212454,1.44737281,94.043,93.971,2.38366791]
[1644652212656,0.03903941,94.05,93.972,7.70066791]
[1644652212857,1.44737281,94.052,93.972,2.38366791]
[1644652213154,1.44737281,94.053,93.973,7.70066791]
[1644652213360,1.44737281,94.053,93.98,15.9544]
[1644652213555,41.30276191,94.052,93.981,4.42577147]
[1644652213759,41.30276191,94.052,93.981,12.12643938]
[1644652213957,41.30276191,94.052,93.981,6.80943938]
[1644652214156,41.30276191,94.052,93.982,7.70066791]
[1644652214556,41.30276191,94.052,93.983,2.38366791]
[1644652214755,41.30276191,94.052,93.99,15.952]
[1644652214955,41.30276191,94.052,93.991,5.317]
[1644652215258,1.44737281,94.057,93.991,2.38366791]
[1644652215456,1.44737281,94.058,93.991,2.38366791]
[1644652215655,1.44737281,94.057,93.991,7.70066791]
[1644652215858,1.44737281,94.06,94.0,15.9508]
[1644652216056,1.44737281,94.074,94.0,15.9508]
[1644652216356,1.44737281,94.074,94.001,25.0242145]
[1644652216757,46.8974,94.071,94.002,2.38366791]
[1644652217758,46.8974,94.071,94.01,15.9489]
[1644652218558,156.49151411,94.083,94.01,15.9489]
[1644652218559,1.44737281,94.08,94.01,33.70256791]
[1644652218759,5.316,94.099,94.01,33.70256791]
[1644652218760,1.44737281,94.099,94.01,33.70256791]
[1644652218961,0.03903941,94.1,94.01,33.70256791]
[1644652219160,1.44737281,94.104,94.01,33.70256791]
[1644652219661,46.23303261,94.103,94.01,33.70256791]
[1644652219868,1.44737281,94.102,94.01,33.70256791]
[1644652220763,1.44737281,94.101,94.01,33.70256791]
[1644652220968,44.7856598,94.103,94.011,5.315]
[1644652221162,44.7856598,94.103,94.031,4.42577147]
[1644652221563,44.7856598,94.103,94.032,2.38366791]
[1644652222362,1.44737281,94.108,94.032,2.38366791]
[1644652222563,1.44737281,94.11,94.033,5.315]
[1644652222766,1.44737281,94.111,94.04,15.9443]
[1644652223163,1.44737281,94.113,94.04,15.9443]
[1644652223368,48.45557894,94.11,94.04,15.9443]
[1644652223669,48.45557894,94.11,93.956,1.49028176]
[1644652223670,68.0,94.109,93.956,1.49028176]
[1644652223864,113.0,94.066,93.931,1.49028176]
[1644652224064,0.03903941,94.06,93.929,1.49028176]
[1644652224365,0.03903941,94.05,93.98,15.9543]
[1644652224563,0.03903941,94.06,93.981,26.72035245]
[1644652224763,41.29853063,94.065,93.981,26.72035245]
[1644652225365,41.29853063,94.065,93.982,2.38366791]
[1644652225888,41.29853063,94.065,94.0,15.9513]
[1644652229093,41.29853063,94.065,93.997,5.317]
[1644652229290,41.29853063,94.065,93.962,2.38366791]
[1644652229291,7.64887034,94.064,93.962,2.38366791]
[1644652229491,7.64887034,94.064,93.934,5.317]
[1644652229492,15.40903941,94.06,93.934,5.317]
[1644652229691,15.40903941,94.06,93.945,2.38366791]
[1644652229692,0.03903941,94.05,93.945,2.38366791]
[1644652229891,5.319,94.049,93.945,2.38366791]
[1644652230091,44.35413718,94.048,93.945,2.38366791]
[1644652230292,53.6994,94.047,93.95,15.9595]
[1644652230493,48.3804,94.047,93.95,15.9595]
[1644652230793,48.3804,94.047,93.951,7.70266791]
[1644652230992,53.6994,94.047,93.951,7.70266791]
[1644652231191,53.6994,94.047,93.952,2.38366791]
[1644652231396,48.3804,94.047,93.954,3.52885143]
[1644652231593,48.3804,94.047,93.955,5.319]
[1644652231794,48.3804,94.047,93.955,7.70266791]
[1644652232093,48.3804,94.047,93.955,5.319]
[1644652232295,48.3804,94.047,93.956,2.38366791]
[1644652232493,48.3804,94.047,93.957,5.319]
[1644652232693,5.319,94.046,93.956,2.38366791]
[1644652232893,48.3804,94.047,93.958,2.38366791]
[1644652233293,5.319,94.046,93.96,15.9577]
[1644652233497,48.3804,94.047,93.96,15.9577]
[1644652233795,48.3804,94.047,93.961,2.38366791]
[1644652234497,48.3804,94.047,93.97,15.9559]
[1644652234696,44.35413718,94.048,93.971,20.25161797]
[1644652234899,44.35413718,94.048,93.971,22.63528588]
[1644652235098,44.35413718,94.048,93.972,2.38366791]
[1644652235297,0.03903941,94.06,93.972,2.38366791]
[1644652235496,0.03903941,94.07,93.972,2.38366791]
[1644652235896,1.44737281,94.077,93.973,5.317]
[1644652236095,0.03903941,94.08,93.973,5.317]
[1644652236096,1.44737281,94.075,93.973,5.317]
[1644652236296,1.44737281,94.075,93.974,2.38366791]
[1644652236498,1.44737281,94.07,93.974,2.38366791]
[1644652236699,1.44737281,94.071,93.975,5.317]
[1644652236898,1.44737281,94.071,93.991,6.81900009]
[1644652237198,1.44737281,94.072,93.991,6.81900009]
[1644652237397,1.44737281,94.073,93.992,2.38366791]
[1644652237598,1.44737281,94.073,93.992,7.70066791]
[1644652237796,1.44737281,94.073,94.01,15.9504]
[1644652237998,1.44737281,94.073,94.01,36.20201797]
[1644652238197,1.44737281,94.074,94.01,36.20201797]
[1644652238599,1.44737281,94.074,94.01,15.9504]
[1644652238800,1.44737281,94.065,94.01,15.9504]
[1644652239402,1.44737281,94.068,94.01,15.9504]
[1644652239603,1.44737281,94.068,94.011,22.78317433]
[1644652240001,1.44737281,94.073,94.02,15.9481]
[1644652240200,1.44737281,94.075,94.02,15.9481]
[1644652240800,38.68208811,94.075,94.02,15.9481]
[1644652241498,37.2347153,94.075,94.02,15.9481]
[1644652241703,1.44737281,94.077,94.02,15.9481]
[1644652242099,1.44737281,94.074,94.02,15.9481]
[1644652242900,49.22031409,94.075,94.02,15.9481]
[1644652243305,47.77294128,94.075,94.02,15.9481]
[1644652243500,49.22031409,94.075,94.02,15.9481]
[1644652243999,1.44737281,94.075,94.02,15.9481]
[1644652244407,1.44737281,94.075,94.02,25.3381]
[1644652245001,1.44737281,94.074,94.02,25.3381]
[1644652245205,1.44737281,94.074,94.02,15.9481]
[1644652245403,1.44737281,94.07,94.02,15.9481]
[1644652246000,1.44737281,94.072,94.02,15.9481]
[1644652247001,1.44737281,94.074,94.02,15.9481]
[1644652247201,1.44737281,94.077,94.02,15.9481]
[1644652247803,34.67403811,94.079,94.02,15.9481]
[1644652248407,34.67403811,94.079,94.021,5.316]
[1644652249204,1.44737281,94.082,94.021,5.316]
[1644652249409,1.44737281,94.082,94.03,15.9461]
[1644652249705,1.44737281,94.083,94.03,15.9461]
[1644652250305,1.44737281,94.082,94.03,15.9461]
[1644652250605,1.44737281,94.082,94.01,15.9496]
[1644652250807,1.44737281,94.08,94.01,15.9496]
[1644652251013,1.44737281,94.072,94.01,15.9496]
[1644652251212,1.44737281,94.071,94.01,15.9496]
[1644652251415,1.44737281,94.07,94.01,15.9496]
[1644652252216,1.44737281,94.069,94.01,15.9496]
[1644652252617,34.73359294,94.068,94.01,15.9496]
[1644652253525,1.44737281,94.073,94.011,2.38366791]
[1644652253719,1.44737281,94.074,94.02,15.9479]
[1644652254219,1.44737281,94.075,94.02,15.9479]
[1644652254622,40.31930688,94.074,94.02,15.9479]
[1644652255620,41.76667969,94.074,94.02,15.9479]
[1644652256222,1.44737281,94.073,94.02,21.2639]
[1644652256624,1.44737281,94.073,94.02,15.9479]
[1644652256824,1.44737281,94.071,94.02,15.9479]
[1644652257024,1.44737281,94.069,94.02,15.9479]
[1644652257227,1.44737281,94.068,94.02,15.9479]
[1644652257425,1.44737281,94.072,94.02,15.9479]
[1644652257624,40.31930688,94.074,94.02,15.9479]
[1644652257824,40.31930688,94.074,93.99,68.5313]
[1644652257825,40.31930688,94.074,93.992,5.316]
[1644652258028,5.317,94.073,94.0,15.9511]
[1644652259648,1.44737281,94.071,94.0,15.9511]
[1644652259849,5.317,94.07,94.0,15.9511]
[1644652260048,1.44737281,94.07,94.0,15.9511]
[1644652260249,5.317,94.069,94.0,15.9511]
[1644652260449,1.44737281,94.067,93.98,15.9545]
[1644652260665,1.44737281,94.066,93.98,15.9545]
[1644652260849,1.44737281,94.066,93.981,5.317]
[1644652261050,6.76437281,94.065,93.98,15.9545]
[1644652261252,1.44737281,94.065,93.98,15.9545]
[1644652261449,5.317,94.064,93.98,15.9545]
[1644652261649,5.317,94.066,93.98,15.9545]
[1644652261848,6.76437281,94.067,93.98,15.9545]
[1644652262047,1.44737281,94.066,93.98,15.9545]
[1644652262250,1.44737281,94.066,93.981,5.317]
[1644652262453,6.76437281,94.065,93.98,15.9545]
[1644652262653,1.44737281,94.064,93.98,15.9545]
[1644652262850,5.317,94.063,93.98,15.9545]
[1644652263051,1.44737281,94.058,93.98,15.9545]
[1644652263251,38.800604,94.057,93.98,15.9545]
[1644652263451,38.800604,94.057,93.981,5.317]
[1644652263855,38.800604,94.057,93.981,7.70066791]
[1644652264253,38.800604,94.057,93.981,5.317]
[1644652264852,38.800604,94.057,93.982,2.38366791]
[1644652266254,38.800604,94.057,93.991,6.28876811]
[1644652266454,38.800604,94.057,93.992,5.317]
[1644652266654,1.44737281,94.066,93.992,7.70066791]
[1644652266853,48.27777281,94.068,93.993,2.38366791]
[1644652267053,46.8304,94.068,93.993,2.38366791]
[1644652267253,46.8304,94.068,93.994,5.317]
[1644652267657,47.65674978,94.067,93.995,2.38366791]
[1644652267858,47.65674978,94.067,94.0,15.9514]
[1644652268060,47.65674978,94.067,94.001,5.317]